Cogmind - Beta 14 @@@ ROGUE MODE // 2024.09.24 @ 20:38:25 Player: Connor Result: Destroyed by Y-45 Defender with Heavy Assault Rifle Performance ------------- Evolutions (2) 1000 Regions Visited (6) 1200 Robots Destroyed (35) 175 Value Destroyed (916) 916 Prototype IDs (1) 20 Alien Tech Used (0) 0 Bonus (130) 130 TOTAL SCORE: 3441 Bonus ------- High Alert Combat Kills 40 Follower Combat Kills 90 Cogmind --------- Core Integrity 0/550 Matter 33/300 Energy 264/265 System Corruption 3% Temperature Cool (0) Movement Core (150) Ox2 Location -8/Storage Parts ------- > --- POWER (2) -------- Improved Ion Engine > --- PROPULSION (4) --- (None) > --- UTILITY (2) ------ Advanced Visual Processing Unit > --- WEAPON (3) ------- (None) > --- INVENTORY (5) ---- Improved Ion Engine Aluminum Leg Aluminum Leg Peak State ------------ > --- POWER ------------ Heavy Ion Engine Light Deuterium Engine > --- PROPULSION ------- Light Treads Light Treads Light Treads Light Treads > --- UTILITY ---------- Advanced Visual Processing Unit Hardened Medium Armor Plating > --- WEAPON ----------- High-powered Shotgun High-powered Shotgun Rocket Launcher > --- INVENTORY -------- Ion Engine Assault Rifle High-powered Shotgun Mini Grenade Launcher [Rating: 24] Favorites ----------- Power Heavy Ion Engine Engine Heavy Ion Engine Propulsion Light Treads Treads Light Treads Leg Aluminum Leg Wheel Compact Wheel Flight Unit Flight Unit Utility Advanced Visual Processing Unit Device Heat Sink Storage Medium Matter Pod Processor Advanced Visual Processing Unit Protection Hardened Medium Armor Plating Weapon High-powered Shotgun Energy Gun Small Laser Ballistic Gun High-powered Shotgun Launcher Mini Grenade Launcher Build | -11 -10 -10 -9 -9 -8 -8 ------- Run | Yrd Mat Min Mat Min Mat Sto Slots Evolved 4 | . . . 2 . 2 . Power 1 | . . . . . 1 . Propulsion 2 | . . . 1 . 1 . Utility . | . . . . . . . Weapon 1 | . . . 1 . . . Parts Attached 46 | 6 4 4 12 1 3 16 Power 9 | 1 . 1 2 . 1 4 Engine 9 | 1 . 1 2 . 1 4 Core . | . . . . . . . Reactor . | . . . . . . . Propulsion 16 | 2 . 2 3 . 1 8 Treads 4 | . . . 3 . 1 . Leg 7 | 2 . . . . . 5 Wheel 2 | . . 2 . . . . Hover . | . . . . . . . Flight 3 | . . . . . . 3 Utility 7 | . 3 1 2 . . 1 Device 3 | . 2 1 . . . . Storage 1 | . 1 . . . . . Processor 2 | . . . 1 . . 1 Hackware . | . . . . . . . Protection 1 | . . . 1 . . . Artifact . | . . . . . . . Weapon 14 | 3 1 . 5 1 1 3 Energy Gun 1 | 1 . . . . . . Energy Cannon . | . . . . . . . Ballistic Gun 9 | 2 1 . 4 . . 2 Ballistic Cannon . | . . . . . . . Launcher 4 | . . . 1 1 1 1 Special Weapon . | . . . . . . . Impact Weapon . | . . . . . . . Slashing Weapon . | . . . . . . . Piercing Weapon . | . . . . . . . Special Melee Weapon . | . . . . . . . Unidentified Prototypes 1 | . . . 1 . . . Parts Lost 20 | . . 3 . . . 17 Power 5 | . . 1 . . . 4 Propulsion 8 | . . 1 . . . 7 Utility 2 | . . 1 . . . 1 Weapon 5 | . . . . . . 5 Highest Loss Streak 15 | . . 3 . . . 15 To Critical Strikes . | . . . . . . . Average Slot Usage (%) 76 | . 93 90 93 100 87 47 Engine 13 | . 14 13 11 11 15 14 Treads 13 | . . . 17 33 27 4 Leg 3 | . 28 14 . . . 2 Wheel 3 | . . 12 10 . . . Device 3 | . 21 19 . . . . Processor 8 | . . . 11 11 9 9 Protection 5 | . . . 10 11 9 1 Ballistic Gun 19 | . 15 24 29 32 18 5 Launcher 3 | . . . 2 . 9 7 Peak Build Rating 24 | 5 7 9 21 21 24 24 Average Rating 14 | 3 6 7 19 20 22 11 On Entrance 12 | . 5 7 8 21 20 24 Naked Turns . | . . . . . . . Heaviest Build 31 | 6 9 9 25 25 31 31 Greatest Support 80 | 20 20 26 60 60 60 80 Greatest Overweight (x) 8 | . . 2 . . . 8 Average Overweight (x) . | . . . . . . 2 Largest Inventory Capacity 5 | 5 5 5 5 5 5 5 Average Capacity 5 | 5 5 5 5 5 5 5 Most Carried 5 | 1 2 3 5 4 4 4 Average Carried 2 | . 1 2 3 3 4 2 Final Capacity 5 | 5 5 5 5 5 5 5 Final Carried 4 | 1 2 2 3 4 4 3 Class Distribution -------------------- 45% | Mutant 44% | Tank 5% | Scavenger-Mutant 5% | Scavenger-Tank Dominant Class ---------------- Mutant | -10/Materials Scavenger-Mutant | -10/Mines Tank | -9/Materials Tank | -9/Mines Tank | -8/Materials Mutant | -8/Storage Resources | -11 -10 -10 -9 -9 -8 -8 ----------- Run | Yrd Mat Min Mat Min Mat Sto Matter Collected 959 | 269 . 119 141 159 . 271 Remotely . | . . . . . . . Salvage Created 891 | 39 . . 97 232 47 476 Parts 72 | 3 . . 11 16 10 32 Haulers Intercepted . | . . . . . . . Recyclers Shooed 1 | . . . . 1 . . Parts Field Recycled . | . . . . . . . Retrieved Matter . | . . . . . . . Parts Self-Destructed . | . . . . . . . Prevented . | . . . . . . . Kills | -11 -10 -10 -9 -9 -8 -8 ------- Run | Yrd Mat Min Mat Min Mat Sto Combat Hostiles Destroyed 22 | 1 . . 2 5 1 13 Guns 11 | 1 . . 2 5 . 3 AOE 11 | . . . . . 1 10 Classes Destroyed 8 | 1 . . 3 2 1 1 Worker 4 | . . . 1 . . 3 Builder 4 | . . . . . 2 2 Recycler 2 | . . . . 1 . 1 Operator 1 | . . . . . . 1 Watcher 2 | . . . 1 . . 1 Swarmer 5 | . . . . 2 . 3 Grunt 12 | 1 . . 1 3 . 7 Sentry 5 | . . . 1 . 1 3 Best Kill Streak 18 | 1 . . 2 3 2 18 Combat Bots Only 8 | 1 . . 1 3 1 8 Max Kills in Single Turn 4 | 1 . . 2 1 1 4 Gunslinging . | . . . . . . . Exploded 2 | . . . . . 1 2 Melee . | . . . . . . . Uniques/NPCs Destroyed . | . . . . . . . Combat | -11 -10 -10 -9 -9 -8 -8 -------- Run | Yrd Mat Min Mat Min Mat Sto Hostile Shots Fired 248 | 3 . 3 6 14 6 216 Missed 60 | . . 2 1 3 . 54 Damage Taken 2847 | 36 . 321 71 111 87 2221 Core 626 | 12 . 35 29 . 15 535 Absorbed by Shields . | . . . . . . . Core Remaining (%) 89 | 95 . 81 . 92 . . Volleys Fired 63 | 3 2 3 5 12 3 35 Largest 3 | 2 2 2 3 3 1 3 Hottest 83 | 60 60 40 75 75 33 83 Shots Fired 124 | 6 4 6 15 32 3 58 Gun 95 | 6 4 6 15 30 . 34 Cannon . | . . . . . . . Launcher 29 | . . . . 2 3 24 Special . | . . . . . . . Kinetic 90 | 3 2 6 15 30 . 34 Thermal 5 | 3 2 . . . . . Explosive 29 | . . . . 2 3 24 Electromagnetic . | . . . . . . . Robot Hit Streak 10 | 5 6 7 3 5 5 10 Robot Miss Streak 7 | 1 2 . 6 7 . 5 Penetration Max . | . . . . . . . Secondary Targets 1 | . . . . 1 . . Max Gunslinging Chain 1 | . . . . 1 . . Shots Hit Robots 72 | 5 2 6 9 16 3 31 Core Hits 68 | 1 1 3 7 9 4 43 Critical Kills . | . . . . . . . Critical Parts Destroyed 1 | . . . . . . 1 Critical Strikes 1 | . . . . . . 1 Destroy 1 | . . . . . . 1 Melee Attacks . | . . . . . . . Impact . | . . . . . . . Slashing . | . . . . . . . Piercing . | . . . . . . . Sneak Attacks . | . . . . . . . Combat Hostiles . | . . . . . . . Follow-up Attacks . | . . . . . . . Damage Inflicted 2415 | 60 21 74 176 287 92 1705 Guns 1115 | 60 21 62 160 287 . 525 Cannons . | . . . . . . . Explosions 1240 | . . . . . 79 1161 Melee . | . . . . . . . Ramming 60 | . . 12 16 . 13 19 Kinetic 1084 | 40 10 62 160 287 . 525 Thermal 31 | 20 11 . . . . . Explosive 1240 | . . . . . 79 1161 Electromagnetic . | . . . . . . . Impact . | . . . . . . . Slashing . | . . . . . . . Piercing . | . . . . . . . Highest Corruption 7 | . . 7 . . . 3 Average Corruption 5 | . . 7 . . . 2 Corruption Purged . | . . . . . . . Corruption Blocked . | . . . . . . . Effects 4 | . . 3 . . . 1 Message Errors 1 | . . 1 . . . . Matter Fused 1 | . . 1 . . . . Data Loss (minor) 2 | . . 1 . . . 1 Overload Shots . | . . . . . . . Overflow Damage . | . . . . . . . Projectiles . | . . . . . . . Explosions . | . . . . . . . Melee . | . . . . . . . Knockbacks . | . . . . . . . Impact . | . . . . . . . Kinetic . | . . . . . . . Secondary . | . . . . . . . Self-Inflicted Damage 72 | . . 6 8 . . 58 Shots 2 | . . . . . . 2 Rammed 11 | . . 1 5 . 1 4 Targets Rammed 15 | . . 1 5 . 2 7 Kicked 3 | . . . . . . 3 Crushed 1 | . . . . . 1 . Highest Temperature 488 | 18 . . 40 98 30 488 Average Temperature 105 | 13 . . 19 39 18 163 Received Heat Transfer 1086 | 18 . . 27 33 27 981 Effects 4 | . . . . . . 4 Shutdowns 2 | . . . . . . 2 Interference 1 | . . . . . . 1 Matter Decay 1 | . . . . . . 1 Siege Activations . | . . . . . . . Robots Corrupted . | . . . . . . . Combat Hostiles . | . . . . . . . Parts Fried . | . . . . . . . Impact Corruptions . | . . . . . . . Robots Melted . | . . . . . . . Combat Hostiles . | . . . . . . . Parts Melted . | . . . . . . . Heat Transferred 75 | 50 25 . . . . . Parts Sabotaged . | . . . . . . . Parts Stolen . | . . . . . . . Parts Stripped . | . . . . . . . Power Chain Reactions . | . . . . . . . Alert | -11 -10 -10 -9 -9 -8 -8 ------- Run | Yrd Mat Min Mat Min Mat Sto Peak Influence 507 | 20 28 10 176 223 162 507 Initial 86 | . 13 10 . 68 86 68 Average 175 | 3 27 4 96 115 105 355 Maximum Alert Level 2 | . . . . 1 . 2 Low Security (%) 63 | 100 100 100 100 87 100 6 Level 1 19 | . . . . 12 . 46 Level 2 16 | . . . . . . 47 Level 3 . | . . . . . . . Level 4 . | . . . . . . . Level 5 . | . . . . . . . High Security . | . . . . . . . Max Security . | . . . . . . . Squads Dispatched 5 | . 2 . 1 . . 2 Investigation 2 | . 1 . 1 . . . Extermination . | . . . . . . . Reinforcement 3 | . 1 . . . . 2 Assault . | . . . . . . . Garrison . | . . . . . . . Intercept . | . . . . . . . Searches Triggered . | . . . . . . . Construction Impeded . | . . . . . . . Haulers Reinforced . | . . . . . . . Active Scanning Responses . | . . . . . . . Cargo Convoy Interrupts . | . . . . . . . Stealth | -11 -10 -10 -9 -9 -8 -8 --------- Run | Yrd Mat Min Mat Min Mat Sto Distress Signals 4 | . 1 . . . . 3 Communications Jammed . | . . . . . . . Distress Signals . | . . . . . . . Times Spotted 44 | 1 1 7 7 6 1 21 Peak Tracking Total 7 | 1 . 7 2 3 1 5 Tactical Retreats 1 | . . 1 . . . . Traps | -11 -10 -10 -9 -9 -8 -8 ------- Run | Yrd Mat Min Mat Min Mat Sto Traps Triggered 2 | . 1 . . . . 1 Indirectly . | . . . . . . . Trap Hack Attempts . | . . . . . . . Triggered . | . . . . . . . Disarmed . | . . . . . . . Reprogrammed . | . . . . . . . Reused . | . . . . . . . Traps Extracted . | . . . . . . . Installed . | . . . . . . . Triggered . | . . . . . . . Machines | -11 -10 -10 -9 -9 -8 -8 ---------- Run | Yrd Mat Min Mat Min Mat Sto Machines Disabled 3 | . . . . 1 . 2 Max in Single Turn 1 | . . . . 1 . 1 Machines Repaired . | . . . . . . . Machines Dismantled . | . . . . . . . Machines Sabotaged . | . . . . . . . Overloaded Fab Kills . | . . . . . . . Hacking | -11 -10 -10 -9 -9 -8 -8 --------- Run | Yrd Mat Min Mat Min Mat Sto Machines Accessed 4 | . . . 3 . . 1 Terminals 4 | . . . 3 . . 1 Fabricators . | . . . . . . . Repair Stations . | . . . . . . . Recycling Units . | . . . . . . . Scanalyzers . | . . . . . . . Garrison Access . | . . . . . . . Total Hacks 7 | . . . 6 . . 1 Successful 4 | . . . 3 . . 1 Failed 2 | . . . 2 . . . Catastrophic . | . . . . . . . Database Lockouts 1 | . . . 1 . . . Manual 5 | . . . 5 . . . Terminals 7 | . . . 6 . . 1 Fabricators . | . . . . . . . Repair Stations . | . . . . . . . Recycling Units . | . . . . . . . Scanalyzers . | . . . . . . . Garrison Access . | . . . . . . . Terminal Hacks 4 | . . . 3 . . 1 Record 3 | . . . 3 . . . Open Door 1 | . . . . . . 1 Fabricator Hacks . | . . . . . . . Repair Station Hacks . | . . . . . . . Recycling Unit Hacks . | . . . . . . . Scanalyzer . | . . . . . . . Garrison Access Hacks . | . . . . . . . Unauthorized Hacks . | . . . . . . . Terminals . | . . . . . . . Fabricators . | . . . . . . . Repair Stations . | . . . . . . . Recycling Units . | . . . . . . . Scanalyzers . | . . . . . . . Garrison Access . | . . . . . . . Data Cores Recovered . | . . . . . . . Used . | . . . . . . . Hacking Detections 2 | . . . 2 . . . Full Trace Events 2 | . . . 2 . . . Feedback Events . | . . . . . . . Feedback Blocked . | . . . . . . . Robot Schematics Acquired . | . . . . . . . Robots Built . | . . . . . . . Authchips . | . . . . . . . Time . | . . . . . . . Total Robot Build Rating . | . . . . . . . Part Schematics Acquired . | . . . . . . . Parts Built . | . . . . . . . Authchips . | . . . . . . . Time . | . . . . . . . Total Part Build Rating . | . . . . . . . Parts Repaired . | . . . . . . . Time . | . . . . . . . Parts Recycled . | . . . . . . . Recycled Matter . | . . . . . . . Retrieved Matter . | . . . . . . . Retrieved Components . | . . . . . . . Parts Scanalyzed . | . . . . . . . Part Schematics Acquired . | . . . . . . . Parts Damaged . | . . . . . . . Bothacking | -11 -10 -10 -9 -9 -8 -8 ------------ Run | Yrd Mat Min Mat Min Mat Sto Used RIF Installer . | . . . . . . . Robots Hacked . | . . . . . . . Non-combat . | . . . . . . . Combat . | . . . . . . . Robot Hacks Applied . | . . . . . . . Relay Couplers Released . | . . . . . . . Fabnet Peak Effective % . | . . . . . . . Robots Rewired . | . . . . . . . Allies Hacked . | . . . . . . . Hacks Repelled . | . . . . . . . Allies | -11 -10 -10 -9 -9 -8 -8 -------- Run | Yrd Mat Min Mat Min Mat Sto Total Allies 3 | . . 3 . . . . Largest Group 3 | . . 3 3 1 . . Highest-Rated Group 40 | . . 40 40 16 . . Highest-Rated Ally 16 | . . 16 16 16 . . Total Orders 2 | . . 1 1 . . . GUARD 2 | . . 1 1 . . . Ally Attacks 32 | . . 10 18 4 . . Total Damage 319 | . . 71 202 46 . . Kills 9 | . . 3 5 1 . . Allies Corrupted . | . . . . . . . Allies Melted . | . . . . . . . Intel | -11 -10 -10 -9 -9 -8 -8 ------- Run | Yrd Mat Min Mat Min Mat Sto Robot Analysis Total . | . . . . . . . Derelict Logs Recovered 1 | . . 1 . . . . Drone Launches . | . . . . . . . Drone Recoveries . | . . . . . . . Exploration | -11 -10 -10 -9 -9 -8 -8 ------------- Run | Yrd Mat Min Mat Min Mat Sto Turns Passed 1884 | 89 99 205 312 377 129 673 Spaces Moved 1078 | 71 72 164 211 182 73 305 Core 182 | 19 . 6 . . . 157 Treads 374 | . . . 92 182 73 27 Legs 259 | 52 72 77 . . . 58 Wheels 200 | . . 81 119 . . . Hover . | . . . . . . . Flight 63 | . . . . . . 63 Fastest Speed 34 | 50 120 90 90 160 160 34 Average Speed 142 | 101 120 104 120 160 160 177 Slowest Speed 450 | 120 120 150 160 160 160 450 Overloaded Moves . | . . . . . . . Propulsion Burnouts . | . . . . . . . Robots Hopped 2 | . . . . . . 2 Cave-ins Triggered 1 | . . 1 . . . . Exploration Rate (%) 25 | 5 19 39 22 40 14 37 Regions Visited 6 Branch Regions 3 Pre-discovered Areas 2 | . . 1 . 1 . . Known Exits Taken . | . . . . . . . Unknown Exits Taken 6 | 1 1 1 1 1 1 . Scrap Searched 1 | . . . . 1 . . Spaces Dug . | . . . . . . . Terrain Destroyed 215 | . . . . 27 27 161 Melee . | . . . . . . . Projectile . | . . . . . . . AOE 215 | . . . . 27 27 161 Terrain Rammed . | . . . . . . . Walls Destroyed . | . . . . . . . Machines Disabled . | . . . . . . . Actions | -11 -10 -10 -9 -9 -8 -8 --------- Run | Yrd Mat Min Mat Min Mat Sto Total 1310 | 79 78 191 259 243 80 380 Wait 73 | . . 16 9 48 . . Move 1069 | 70 71 163 210 181 73 301 Hop 2 | . . . . . . 2 Pick Up 12 | . 1 . 5 1 . 5 Fast Attach 29 | 5 2 4 7 . 2 9 Attach 9 | . . . 2 . . 7 Detach 15 | . . 2 5 . . 8 Swap 8 | 1 2 . 3 1 1 . Drop 16 | . . 2 8 . . 6 Fire 63 | 3 2 3 5 12 3 35 Melee . | . . . . . . . Ram 10 | . . 1 5 . . 4 Kick 3 | . . . . . . 3 Crush 1 | . . . . . 1 . Escape Stasis . | . . . . . . . Rewire . | . . . . . . . Trap . | . . . . . . . Miscellaneous . | . . . . . . . Route ------- -11/Scrapyard -10/Materials -10/Mines -9/Materials -9/Mines -8/Materials -8/Storage History --------- Turn | Location | Event 2 | -11/Scrapyard | Met Revision 17 64 | -11/Scrapyard | Discovered new exit (range 8) 90 | -11/Scrapyard | Entered Materials 169 | -10/Materials | Discovered new exit (range 6) 189 | -10/Materials | Entered Mines 193 | -10/Mines | Assisted by bots powering up and referring to "LRC-V3" 244 | -10/Mines | Assembled infested the area 248 | -10/Mines | Met a Derelict bent on vengeance 249 | -10/Mines | Assisted by a Guerilla fighting off Assembled 289 | -10/Mines | Crushed by falling debris 320 | -10/Mines | Lost 3 parts (1p1n1u) 342 | -10/Mines | Learned location of Storage (-8) 373 | -10/Mines | Discovered new exit (range 9) 394 | -10/Mines | Entered Materials 394 | -9/Materials | Accompanied by 3 allies 394 | -9/Materials | Evolved 2 slots: Propulsion x1, Weapon x1 667 | -9/Materials | Central database locked down 672 | -9/Materials | Discovered new exit (range 17) 684 | -9/Materials | Build established: Tank 706 | -9/Materials | Entered Mines 706 | -9/Mines | Accompanied by 1 ally 1053 | -9/Mines | Discovered new exit (range 2) 1058 | -9/Mines | Received a Rocket Launcher from a helpful Derelict 1083 | -9/Mines | Entered Materials 1083 | -8/Materials | Evolved 2 slots: Power x1, Propulsion x1 1171 | -8/Materials | Discovered new exit (range 17) 1212 | -8/Materials | Entered Storage 1331 | -8/Storage | Destroyed 8 combat bots 1376 | -8/Storage | Core integrity fell below 50% 1421 | -8/Storage | Lost 15 parts (3p7n1u4w) 1621 | -8/Storage | Build established: Mutant 1855 | -8/Storage | Core integrity fell below 20% 1885 | -8/Storage | Destroyed by Y-45 Defender with Heavy Assault Rifle Last Messages --------------- Slammed into K-01 Serf. Connecting with Door Terminal... K-01 Serf cleans the Holding Depot. Triggered Shock Trap. The floor emits a surge of raw power. System corrupted (+1). K-01 Serf cleans the Holding Depot. ALERT: Hostiles spotted, dispatching reinforcements to Terminal S013. Slammed into Y-45 Defender. Destabilizing: System corrupted (+2). Slammed into Y-45 Defender. Mni. Grenade Launcher destroyed. System corrupted: Component data lost. Critical hit (Burn: +37). K-01 Serf cleans the Terminal. Critical hit (Burn: +37). K-01 Serf cleans the Terminal. Imp. Ion Engine destroyed. K-01 Serf cleans the Terminal. Map ----- +----------------------------------------------------+ | ????????????????????????????????????? | | ????????????????????????????????????? | | ????????????????????????????????????? | | ????????????????????????????????????? | | ????????????????????????????????????? | | ????????????????????????????????????? | | ????????????????????????????????????? | | ????????????????????????????????????? | | ????????????????????????????????????? | | ????????????????????????????????????? | | ????????????????????????????????????? | | ????????????????????????????????????? | | ????????????????????????????????????? | | ????????????????????????????????????? | | ????????????????????????????????????? | | ????????????????????????????????????? | | ????????????????????????????????????? | | ????????????????????????????????????? | | ????????????????????????????????????? | | ????????????????????????????????????? | | ????????????????????????????????????? | | ????????????????????????????????????? | | ???????###+#????######??????????????? | | ???????# ##### ##+############# | | ????" + k Y ^ ^^^^ | | ???????# T @ a a k ^ | | ???????# ##### ### """"" | | ???????## #????######?# """"" | | ????????# ????????????# """"" ^ | | ????????# ?????????????# """"" | | ????????#??????????????# | | ???????????????????????# | | ???????????????????????# | | ???????????????????????# ####+### | | ???????????????????????#######??? | | ?????????????????????????????? | | ??????????????????????????????? | | ???????????????????????????????? """ | | ??????????????????????????????? """ | | ?????????????????????????????? """ | | ?????????????????????????????# ??? | | ???????????????????????????????????" | | ????????????????????????????????????? | | ????????????????????????????????????? | | ????????????????????????????????????? | | ????????????????????????????????????? | | ????????????????????????????????????? | | ????????????????????????????????????? | | ????????????????????????????????????? | | ????????????????????????????????????? | +----------------------------------------------------+ Best States ------------- Heat Dissipation 38 Energy Generation 23 Energy Capacity 430 Matter Stores 300 Matter Capacity 400 Sight Range 20 Terrain Scan Range 16 Terrain Scan Density 10 Armor Coverage 225 Evasion (%) 63 Recoil Reduction 4 Item Schematics ----------------- None Robot Schematics ------------------ None Fabricated ------------ Nothing Alien Tech Used ----------------- None Achievements -------------- Crack Shot I Survived The Infestation Oops Remodeling Uninvited Guest Unlikely Earthworm Challenges ------------ None Game ------ Seed OpticalDisruptionDissipator Manual? 0 Play Time 00:38:25 Cumulative 2.4 hours Start 2024.09.24 @ 20:00:09 End 2024.09.24 @ 20:38:25 Sessions 1 Manual Loads 0 Difficulty Rogue Special Mode None Game No. 3 Rogue 3 Adventurer 0 Explorer 0 Win Type - Total 0 Types 0/0/0/0/0/0/0/0/0 Lore% 1 Gallery% 5 Achievement% 7 Wizard Run 0 Options --------- Layout 1 ASCII 0 Keyboard 1 Movement Arrows Keybinds 0 Fullscreen 1 Font 24/Smallcaps Map View 50x35 Zoom Use 0% Tactical HUD 0 Map Filters NONE Filters NONE Steam 1 RUN: a23b9f73-0736-4abc-98f7-4b1f05a7d969